[Event "Late-Titled-Tuesday-Blitz-March-12-2024"]
[Site "Chess.com"]
[Date "2024.03.12"]
[Round "11"]
[White "GaiozNigalidze"]
[Black "ChainedDowntohell"]
[Result "1-0"]
[WhiteElo "2701"]
[BlackElo "2537"]
[TimeControl "180+1"]
[EndTime "16:02:35 PDT"]
[Termination "GaiozNigalidze won by resignation"]

1. d4 {[%clk 0:03:00.9]} 1... Nf6 {[%clk 0:03:00]} 2. c4 {[%clk 0:03:01.5]} 2...
e6 {[%clk 0:02:59.8]} 3. Nc3 {[%clk 0:03:02.2]} 3... Bb4 {[%clk 0:02:59]} 4. f3
{[%clk 0:03:02.8]} 4... Nc6 {[%clk 0:02:47.7]} 5. e4 {[%clk 0:03:02.2]} 5... d6
{[%clk 0:02:45.4]} 6. a3 {[%clk 0:03:01.2]} 6... Bxc3+ {[%clk 0:02:44.9]} 7.
bxc3 {[%clk 0:03:01.8]} 7... e5 {[%clk 0:02:45.1]} 8. d5 {[%clk 0:03:01.6]} 8...
Ne7 {[%clk 0:02:35]} 9. Be3 {[%clk 0:03:00.7]} 9... b6 {[%clk 0:02:33.7]} 10. g4
{[%clk 0:02:59.8]} 10... h5 {[%clk 0:02:31.6]} 11. g5 {[%clk 0:02:59.9]} 11...
Nh7 {[%clk 0:02:31.3]} 12. h4 {[%clk 0:03:00]} 12... O-O {[%clk 0:02:23]} 13.
Ne2 {[%clk 0:02:59.3]} 13... f6 {[%clk 0:02:18.6]} 14. Ng3 {[%clk 0:02:54.1]}
14... Ng6 {[%clk 0:02:12]} 15. Nxh5 {[%clk 0:02:47.1]} 15... fxg5 {[%clk
0:02:08.5]} 16. hxg5 {[%clk 0:02:42.4]} 16... Nxg5 {[%clk 0:02:07.8]} 17. Be2
{[%clk 0:02:30.5]} 17... Nh3 {[%clk 0:02:04.8]} 18. Kd2 {[%clk 0:02:17.3]} 18...
Ngf4 {[%clk 0:02:01.2]} 19. Nxf4 {[%clk 0:02:14.2]} 19... exf4 {[%clk
0:01:40.9]} 20. Bd4 {[%clk 0:02:13.6]} 20... Qg5 {[%clk 0:01:31.2]} 21. Bf1
{[%clk 0:02:02.9]} 21... Qg3 {[%clk 0:01:23.2]} 22. Bxh3 {[%clk 0:01:58.2]}
22... Bxh3 {[%clk 0:01:22.2]} 23. Qe2 {[%clk 0:01:56.7]} 23... Bg2 {[%clk
0:01:00.4]} 24. Rhg1 {[%clk 0:01:56.4]} 24... Bxf3 {[%clk 0:00:59.9]} 25. Rxg3
{[%clk 0:01:56.1]} 25... fxg3 {[%clk 0:01:00.3]} 26. Qe3 {[%clk 0:01:55.2]}
26... Rf7 {[%clk 0:00:50.8]} 27. Rf1 {[%clk 0:01:51.2]} 27... Raf8 {[%clk
0:00:48.4]} 28. Qg5 {[%clk 0:01:51.7]} 28... Bxe4 {[%clk 0:00:35.1]} 29. Rxf7
{[%clk 0:01:51.1]} 29... Rxf7 {[%clk 0:00:34.6]} 30. Qxg3 {[%clk 0:01:50.8]}
30... Bf5 {[%clk 0:00:26.6]} 31. Qg5 {[%clk 0:01:50.4]} 31... Kh7 {[%clk
0:00:20.5]} 32. Bxg7 {[%clk 0:01:47.3]} 32... Rxg7 {[%clk 0:00:07.7]} 33. Qxf5+
{[%clk 0:01:47]} 33... Kh6 {[%clk 0:00:08.1]} 34. Ke3 {[%clk 0:01:46.3]} 34...
a5 {[%clk 0:00:08.2]} 35. Kf4 {[%clk 0:01:44.3]} 35... Rg8 {[%clk 0:00:02.5]}
36. Qf6+ {[%clk 0:01:42.2]} 36... Kh7 {[%clk 0:00:02.6]} 37. Kf5 {[%clk
0:01:41]} 37... Re8 {[%clk 0:00:01.3]} 38. Qf7+ {[%clk 0:01:40.5]} 1-0

[Event "Late-Titled-Tuesday-Blitz-March-12-2024"]
[Site "Chess.com"]
[Date "2024.03.12"]
[Round "11"]
[White "BebeBonito2022"]
[Black "cthake"]
[Result "1-0"]
[WhiteElo "2303"]
[BlackElo "1761"]
[TimeControl "180+1"]
[EndTime "16:02:35 PDT"]
[Termination "BebeBonito2022 won by resignation"]

1. d4 {[%clk 0:03:00.9]} 1... Nf6 {[%clk 0:02:58.7]} 2. c4 {[%clk 0:03:01]} 2...
g6 {[%clk 0:02:58.2]} 3. Nc3 {[%clk 0:03:01.3]} 3... d5 {[%clk 0:02:58.3]} 4.
cxd5 {[%clk 0:03:02.2]} 4... Nxd5 {[%clk 0:02:58]} 5. e4 {[%clk 0:03:02.9]} 5...
Nxc3 {[%clk 0:02:57.8]} 6. bxc3 {[%clk 0:03:03.8]} 6... Bg7 {[%clk 0:02:57.5]}
7. Qa4+ {[%clk 0:03:03.9]} 7... Bd7 {[%clk 0:02:49.5]} 8. Qa3 {[%clk 0:03:03.5]}
8... O-O {[%clk 0:02:47.7]} 9. Bg5 {[%clk 0:03:03.3]} 9... Re8 {[%clk
0:02:43.1]} 10. Nf3 {[%clk 0:03:03.3]} 10... c5 {[%clk 0:02:41.6]} 11. Qxc5
{[%clk 0:02:56.5]} 11... Nc6 {[%clk 0:02:37.6]} 12. Be2 {[%clk 0:02:52.6]} 12...
Rc8 {[%clk 0:02:36.2]} 13. Qa3 {[%clk 0:02:50.7]} 13... h6 {[%clk 0:02:24.3]}
14. Bh4 {[%clk 0:02:40]} 14... Bg4 {[%clk 0:02:18.8]} 15. O-O {[%clk 0:02:35.6]}
15... g5 {[%clk 0:02:12.5]} 16. Bg3 {[%clk 0:02:35.2]} 16... Qd7 {[%clk
0:02:03.6]} 17. Rac1 {[%clk 0:02:16.4]} 17... e6 {[%clk 0:01:58.8]} 18. Rfe1
{[%clk 0:02:06.9]} 18... Bf8 {[%clk 0:01:56.5]} 19. Qb2 {[%clk 0:02:02.7]} 19...
b6 {[%clk 0:01:52.9]} 20. Ne5 {[%clk 0:02:00.3]} 20... Nxe5 {[%clk 0:01:52.2]}
21. Bxe5 {[%clk 0:01:59.4]} 21... Bxe2 {[%clk 0:01:51.3]} 22. Qxe2 {[%clk
0:01:58.6]} 22... Bg7 {[%clk 0:01:51.4]} 23. Bxg7 {[%clk 0:01:58]} 23... Kxg7
{[%clk 0:01:51.7]} 24. f4 {[%clk 0:01:53.7]} 24... Qe7 {[%clk 0:01:45.9]} 25.
Rf1 {[%clk 0:01:51.9]} 25... Rh8 {[%clk 0:01:30.3]} 26. f5 {[%clk 0:01:47.8]}
26... f6 {[%clk 0:01:19.7]} 27. e5 {[%clk 0:01:35.4]} 27... exf5 {[%clk
0:01:15.9]} 28. Rxf5 {[%clk 0:01:31.2]} 28... fxe5 {[%clk 0:01:08.5]} 29. Rxe5
{[%clk 0:01:30.2]} 29... Qd6 {[%clk 0:00:52.8]} 30. Re6 {[%clk 0:01:08.9]} 30...
Qxd4+ {[%clk 0:00:40.6]} 31. cxd4 {[%clk 0:01:07.9]} 31... Rxc1+ {[%clk
0:00:40.7]} 32. Kf2 {[%clk 0:01:08.3]} 32... Rf8+ {[%clk 0:00:40.6]} 33. Kg3
{[%clk 0:01:08.2]} 33... Rc3+ {[%clk 0:00:40]} 34. Re3 {[%clk 0:01:06.1]} 34...
Rxe3+ {[%clk 0:00:30.4]} 35. Qxe3 {[%clk 0:01:06.3]} 1-0

[Event "Late-Titled-Tuesday-Blitz-March-12-2024"]
[Site "Chess.com"]
[Date "2024.03.12"]
[Round "11"]
[White "only_strong_moves"]
[Black "Fh2411"]
[Result "1-0"]
[WhiteElo "2584"]
[BlackElo "2657"]
[TimeControl "180+1"]
[EndTime "16:02:36 PDT"]
[Termination "only_strong_moves won on time"]

1. Nc3 {[%clk 0:03:00.9]} 1... d5 {[%clk 0:02:58.1]} 2. e4 {[%clk 0:02:59.5]}
2... dxe4 {[%clk 0:02:59]} 3. Nxe4 {[%clk 0:02:59.8]} 3... Nf6 {[%clk
0:02:59.6]} 4. Nxf6+ {[%clk 0:02:59.5]} 4... exf6 {[%clk 0:03:00.5]} 5. d4
{[%clk 0:03:00.1]} 5... Bd6 {[%clk 0:02:57.7]} 6. Bd3 {[%clk 0:02:59.4]} 6...
O-O {[%clk 0:02:58.1]} 7. Ne2 {[%clk 0:03:00.1]} 7... Re8 {[%clk 0:02:47.7]} 8.
c3 {[%clk 0:03:00]} 8... Nd7 {[%clk 0:02:48.2]} 9. Qc2 {[%clk 0:02:59.4]} 9...
Nf8 {[%clk 0:02:48.9]} 10. O-O {[%clk 0:02:59.3]} 10... c6 {[%clk 0:02:37.1]}
11. Ng3 {[%clk 0:02:57.7]} 11... Qc7 {[%clk 0:02:33]} 12. Bd2 {[%clk 0:02:53.4]}
12... Be6 {[%clk 0:02:02.1]} 13. Rae1 {[%clk 0:02:51.4]} 13... Rad8 {[%clk
0:01:21.4]} 14. f4 {[%clk 0:02:51]} 14... Bc8 {[%clk 0:00:58.5]} 15. Ne4 {[%clk
0:02:40.9]} 15... Be7 {[%clk 0:00:54.9]} 16. b4 {[%clk 0:02:36]} 16... f5 {[%clk
0:00:53.5]} 17. Ng5 {[%clk 0:02:10.2]} 17... h6 {[%clk 0:00:45.6]} 18. Nf3
{[%clk 0:02:09.8]} 18... g6 {[%clk 0:00:45.3]} 19. Ne5 {[%clk 0:02:09.7]} 19...
Be6 {[%clk 0:00:44.3]} 20. Kh1 {[%clk 0:02:07.2]} 20... a5 {[%clk 0:00:32.9]}
21. a3 {[%clk 0:02:06.8]} 21... Bf6 {[%clk 0:00:24.9]} 22. Re3 {[%clk
0:02:03.5]} 22... b5 {[%clk 0:00:20.4]} 23. Rg3 {[%clk 0:02:02.4]} 23... Bg7
{[%clk 0:00:16.7]} 24. bxa5 {[%clk 0:01:52.6]} 24... Bd5 {[%clk 0:00:13.8]} 25.
a4 {[%clk 0:01:41.4]} 25... bxa4 {[%clk 0:00:05.5]} 26. Qxa4 {[%clk 0:01:42.3]}
26... Ne6 {[%clk 0:00:05.3]} 27. a6 {[%clk 0:01:40.3]} 27... Ra8 {[%clk
0:00:04.2]} 28. Re3 {[%clk 0:01:30.8]} 28... Rec8 {[%clk 0:00:04.4]} 29. Ree1
{[%clk 0:01:30.4]} 29... c5 {[%clk 0:00:04.3]} 30. Rb1 {[%clk 0:01:28.1]} 30...
cxd4 {[%clk 0:00:01.5]} 31. cxd4 {[%clk 0:01:27.1]} 1-0

[Event "Late-Titled-Tuesday-Blitz-March-12-2024"]
[Site "Chess.com"]
[Date "2024.03.12"]
[Round "11"]
[White "AmanteDeMoi"]
[Black "carloseduar100"]
[Result "0-1"]
[WhiteElo "2573"]
[BlackElo "2356"]
[TimeControl "180+1"]
[EndTime "16:02:41 PDT"]
[Termination "carloseduar100 won on time"]

1. Nf3 {[%clk 0:03:00.9]} 1... Nf6 {[%clk 0:02:59.9]} 2. e3 {[%clk 0:02:56.5]}
2... d5 {[%clk 0:02:59.4]} 3. b3 {[%clk 0:02:56.8]} 3... c6 {[%clk 0:02:59.7]}
4. Bb2 {[%clk 0:02:57.7]} 4... Nbd7 {[%clk 0:02:59.4]} 5. Be2 {[%clk 0:02:57.8]}
5... Qc7 {[%clk 0:03:00.1]} 6. O-O {[%clk 0:02:58.7]} 6... e5 {[%clk 0:03:00.3]}
7. c4 {[%clk 0:02:58.8]} 7... Bd6 {[%clk 0:02:59.6]} 8. cxd5 {[%clk 0:02:58.2]}
8... cxd5 {[%clk 0:02:59.7]} 9. Nc3 {[%clk 0:02:58.9]} 9... a6 {[%clk 0:03:00]}
10. Rc1 {[%clk 0:02:57.4]} 10... Qb8 {[%clk 0:03:00.3]} 11. d3 {[%clk
0:01:34.2]} 11... O-O {[%clk 0:02:58.3]} 12. h3 {[%clk 0:01:29.7]} 12... Re8
{[%clk 0:02:57.1]} 13. Ne1 {[%clk 0:01:08.9]} 13... e4 {[%clk 0:02:56.9]} 14.
dxe4 {[%clk 0:01:08]} 14... Nxe4 {[%clk 0:02:56.7]} 15. Nxd5 {[%clk 0:00:47.5]}
15... Bh2+ {[%clk 0:02:56.6]} 16. Kh1 {[%clk 0:00:47.6]} 16... Be5 {[%clk
0:02:52.9]} 17. Bxe5 {[%clk 0:00:39.9]} 17... Qxe5 {[%clk 0:02:52.9]} 18. Nc7
{[%clk 0:00:40]} 18... Ndf6 {[%clk 0:02:42.2]} 19. Nxa8 {[%clk 0:00:36.4]} 19...
Bxh3 {[%clk 0:02:18.3]} 20. gxh3 {[%clk 0:00:32.1]} 20... Qf5 {[%clk 0:02:13.9]}
21. Bg4 {[%clk 0:00:27]} 21... Nxf2+ {[%clk 0:02:13.3]} 22. Rxf2 {[%clk
0:00:10.4]} 22... Qxf2 {[%clk 0:02:14.2]} 23. Qe2 {[%clk 0:00:05.2]} 23... Nxg4
{[%clk 0:01:58.1]} 24. Qxg4 {[%clk 0:00:06.1]} 24... Qxe3 {[%clk 0:01:58.3]} 25.
Rd1 {[%clk 0:00:04.6]} 25... Rxa8 {[%clk 0:01:57.7]} 26. Ng2 {[%clk 0:00:05]}
26... Qf2 {[%clk 0:01:48.1]} 27. Rg1 {[%clk 0:00:05.4]} 27... g6 {[%clk
0:01:45.6]} 28. a4 {[%clk 0:00:04.9]} 28... Re8 {[%clk 0:01:44.8]} 29. Nf4
{[%clk 0:00:04.4]} 29... Re3 {[%clk 0:01:32.3]} 30. Qc8+ {[%clk 0:00:03.9]}
30... Kg7 {[%clk 0:01:32.2]} 31. Qg4 {[%clk 0:00:01.8]} 31... Qf3+ {[%clk
0:01:26.9]} 32. Qxf3 {[%clk 0:00:01.1]} 32... Rxf3 {[%clk 0:01:27.8]} 0-1

[Event "Late-Titled-Tuesday-Blitz-March-12-2024"]
[Site "Chess.com"]
[Date "2024.03.12"]
[Round "11"]
[White "nj123456"]
[Black "trriinu"]
[Result "1-0"]
[WhiteElo "2467"]
[BlackElo "2290"]
[TimeControl "180+1"]
[EndTime "16:02:43 PDT"]
[Termination "nj123456 won on time"]

1. e4 {[%clk 0:03:00.9]} 1... d5 {[%clk 0:03:00]} 2. exd5 {[%clk 0:03:00.9]}
2... Qxd5 {[%clk 0:03:00.9]} 3. Nc3 {[%clk 0:03:01.1]} 3... Qd6 {[%clk
0:03:01.3]} 4. d4 {[%clk 0:03:01.5]} 4... Nf6 {[%clk 0:03:02.1]} 5. Nf3 {[%clk
0:03:01.7]} 5... Nc6 {[%clk 0:03:02.3]} 6. Be2 {[%clk 0:03:01.8]} 6... Bg4
{[%clk 0:03:02.1]} 7. O-O {[%clk 0:03:01.8]} 7... e6 {[%clk 0:03:02.4]} 8. Nb5
{[%clk 0:03:00.9]} 8... Qd7 {[%clk 0:03:01.9]} 9. c4 {[%clk 0:02:59.1]} 9... a6
{[%clk 0:03:01.4]} 10. Nc3 {[%clk 0:02:59.1]} 10... O-O-O {[%clk 0:03:01.8]} 11.
Be3 {[%clk 0:02:58.5]} 11... Bxf3 {[%clk 0:03:01.3]} 12. Bxf3 {[%clk 0:02:57.5]}
12... Nxd4 {[%clk 0:03:01.7]} 13. Bxd4 {[%clk 0:02:54.7]} 13... Qxd4 {[%clk
0:03:01.6]} 14. Qb3 {[%clk 0:02:55.6]} 14... Qb6 {[%clk 0:02:57.5]} 15. Qc2
{[%clk 0:02:51.1]} 15... Bc5 {[%clk 0:02:46.7]} 16. Na4 {[%clk 0:02:49.8]} 16...
Qa7 {[%clk 0:02:35.9]} 17. b4 {[%clk 0:02:46]} 17... Bd4 {[%clk 0:02:26.9]} 18.
Rab1 {[%clk 0:02:42.7]} 18... Nd7 {[%clk 0:01:56.4]} 19. c5 {[%clk 0:02:29.8]}
19... c6 {[%clk 0:01:50]} 20. Rfd1 {[%clk 0:02:24.5]} 20... Be5 {[%clk
0:01:35.2]} 21. Qe4 {[%clk 0:02:14.9]} 21... Bc7 {[%clk 0:01:29.9]} 22. Qg4
{[%clk 0:01:53.6]} 22... g6 {[%clk 0:01:24.7]} 23. Qh4 {[%clk 0:01:44.8]} 23...
Qb8 {[%clk 0:01:03.8]} 24. Qe7 {[%clk 0:01:42.9]} 24... Bxh2+ {[%clk 0:01:03]}
25. Kh1 {[%clk 0:01:42.5]} 25... Bc7 {[%clk 0:00:33.5]} 26. Qxf7 {[%clk
0:01:41.2]} 26... Rhe8 {[%clk 0:00:18.2]} 27. Bg4 {[%clk 0:01:40.2]} 27... Nf8
{[%clk 0:00:09.5]} 28. Qxf8 {[%clk 0:01:25.4]} 28... Rxf8 {[%clk 0:00:02.3]} 29.
Bxe6+ {[%clk 0:01:25.6]} 29... Rd7 {[%clk 0:00:02]} 30. Rxd7 {[%clk 0:01:23.2]}
30... Bf4 {[%clk 0:00:01.1]} 31. Rf7+ {[%clk 0:01:19.8]} 1-0

[Event "Late-Titled-Tuesday-Blitz-March-12-2024"]
[Site "Chess.com"]
[Date "2024.03.12"]
[Round "11"]
[White "Misterfox120"]
[Black "Divljasvinja14"]
[Result "1-0"]
[WhiteElo "2397"]
[BlackElo "2464"]
[TimeControl "180+1"]
[EndTime "16:02:45 PDT"]
[Termination "Misterfox120 won by resignation"]

1. d4 {[%clk 0:02:55.1]} 1... Nf6 {[%clk 0:03:00.1]} 2. Bf4 {[%clk 0:02:52.3]}
2... g6 {[%clk 0:03:00]} 3. Nc3 {[%clk 0:02:52.2]} 3... d6 {[%clk 0:02:57.8]} 4.
e4 {[%clk 0:02:51.4]} 4... Bg7 {[%clk 0:02:57.8]} 5. Qd2 {[%clk 0:02:51.7]} 5...
Nc6 {[%clk 0:02:51.8]} 6. O-O-O {[%clk 0:02:40]} 6... O-O {[%clk 0:02:47.4]} 7.
h4 {[%clk 0:02:29.2]} 7... h5 {[%clk 0:02:42.1]} 8. f3 {[%clk 0:02:19.2]} 8...
e5 {[%clk 0:02:34.2]} 9. dxe5 {[%clk 0:02:17.2]} 9... dxe5 {[%clk 0:02:34.2]}
10. Qxd8 {[%clk 0:02:17]} 10... Rxd8 {[%clk 0:02:34.6]} 11. Rxd8+ {[%clk
0:02:16.7]} 11... Nxd8 {[%clk 0:02:35.5]} 12. Bxe5 {[%clk 0:02:17.4]} 12... c6
{[%clk 0:02:35.7]} 13. Nh3 {[%clk 0:02:04.8]} 13... Bxh3 {[%clk 0:02:25.4]} 14.
Rxh3 {[%clk 0:02:04.1]} 14... Ne6 {[%clk 0:02:26.3]} 15. Bc4 {[%clk 0:01:55.3]}
15... Bh6+ {[%clk 0:02:22.5]} 16. Kb1 {[%clk 0:01:44.2]} 16... Nd7 {[%clk
0:02:22.1]} 17. Bxe6 {[%clk 0:01:37.7]} 17... Nxe5 {[%clk 0:02:21.9]} 18. Bb3
{[%clk 0:01:33.7]} 18... Rd8 {[%clk 0:02:19.6]} 19. Rh1 {[%clk 0:00:54.7]} 19...
Rd2 {[%clk 0:02:17.3]} 20. Rg1 {[%clk 0:00:54.1]} 20... Be3 {[%clk 0:02:12.8]}
21. Re1 {[%clk 0:00:51.5]} 21... Rxg2 {[%clk 0:02:11.5]} 22. a4 {[%clk
0:00:44.2]} 22... Bf2 {[%clk 0:01:58.8]} 23. Re2 {[%clk 0:00:38.4]} 23... Rg1+
{[%clk 0:01:49.4]} 24. Ka2 {[%clk 0:00:38.1]} 24... Bxh4 {[%clk 0:01:49.9]} 25.
f4 {[%clk 0:00:38.7]} 25... Ng4 {[%clk 0:01:46.7]} 26. e5 {[%clk 0:00:35.2]}
26... Bg3 {[%clk 0:01:43.2]} 27. e6 {[%clk 0:00:33.1]} 27... fxe6 {[%clk
0:01:40.2]} 28. Rxe6 {[%clk 0:00:33]} 28... Kg7 {[%clk 0:01:40.3]} 29. Re7+
{[%clk 0:00:30.1]} 29... Kh6 {[%clk 0:01:38.6]} 30. Bg8 {[%clk 0:00:25.6]} 30...
Bxf4 {[%clk 0:01:37.3]} 31. Ne4 {[%clk 0:00:25.8]} 31... g5 {[%clk 0:01:31.2]}
32. Rxb7 {[%clk 0:00:16.2]} 32... Kg6 {[%clk 0:01:26.7]} 33. Bh7+ {[%clk
0:00:15.3]} 33... Kh6 {[%clk 0:01:27.1]} 34. Bf5 {[%clk 0:00:15.9]} 34... Nf6
{[%clk 0:01:21]} 35. Nxf6 {[%clk 0:00:15.1]} 35... g4 {[%clk 0:01:21.6]} 36. Ne4
{[%clk 0:00:15.1]} 1-0

[Event "Late-Titled-Tuesday-Blitz-March-12-2024"]
[Site "Chess.com"]
[Date "2024.03.12"]
[Round "11"]
[White "GMKrikor"]
[Black "jstopa4"]
[Result "1-0"]
[WhiteElo "2886"]
[BlackElo "2741"]
[TimeControl "180+1"]
[EndTime "16:02:46 PDT"]
[Termination "GMKrikor won by resignation"]

1. Nf3 {[%clk 0:03:00.9]} 1... d5 {[%clk 0:02:55.2]} 2. c4 {[%clk 0:03:00.9]}
2... c6 {[%clk 0:02:46.7]} 3. d4 {[%clk 0:03:00.8]} 3... Nf6 {[%clk 0:02:46.3]}
4. Nc3 {[%clk 0:03:00.5]} 4... e6 {[%clk 0:02:45.5]} 5. Qc2 {[%clk 0:03:00.2]}
5... c5 {[%clk 0:02:29.4]} 6. cxd5 {[%clk 0:02:38.6]} 6... cxd4 {[%clk
0:02:29.4]} 7. Nxd4 {[%clk 0:02:37]} 7... exd5 {[%clk 0:02:24.7]} 8. Bf4 {[%clk
0:01:50.2]} 8... Be7 {[%clk 0:01:52.2]} 9. e3 {[%clk 0:01:46.2]} 9... O-O {[%clk
0:01:51.4]} 10. Bd3 {[%clk 0:01:46.3]} 10... Nc6 {[%clk 0:01:50.6]} 11. Nxc6
{[%clk 0:01:45.5]} 11... bxc6 {[%clk 0:01:50.7]} 12. O-O {[%clk 0:01:45.9]}
12... Be6 {[%clk 0:01:49.7]} 13. Rac1 {[%clk 0:01:40.5]} 13... Qa5 {[%clk
0:01:41.4]} 14. Rfd1 {[%clk 0:01:39.3]} 14... h6 {[%clk 0:01:40.7]} 15. b3
{[%clk 0:01:33.3]} 15... Ba3 {[%clk 0:01:37.8]} 16. Rb1 {[%clk 0:01:33.6]} 16...
Bb4 {[%clk 0:01:35.1]} 17. Na4 {[%clk 0:01:31.7]} 17... Rac8 {[%clk 0:01:32.4]}
18. Be5 {[%clk 0:01:26.8]} 18... Be7 {[%clk 0:01:28.5]} 19. Bc3 {[%clk
0:01:24.7]} 19... Qc7 {[%clk 0:01:28.5]} 20. Rbc1 {[%clk 0:01:21.9]} 20... c5
{[%clk 0:01:23.3]} 21. Bxf6 {[%clk 0:01:20.7]} 21... gxf6 {[%clk 0:01:19.4]} 22.
Ba6 {[%clk 0:01:11.1]} 22... Qe5 {[%clk 0:01:04.4]} 23. Bxc8 {[%clk 0:01:09.4]}
23... Rxc8 {[%clk 0:01:04.7]} 24. Qd2 {[%clk 0:01:01.2]} 24... Bd6 {[%clk
0:01:02]} 25. f4 {[%clk 0:01:01.4]} 25... Qh5 {[%clk 0:00:59.4]} 26. Nc3 {[%clk
0:01:01.2]} 26... d4 {[%clk 0:00:44.3]} 27. Ne4 {[%clk 0:01:01]} 27... Be7
{[%clk 0:00:41.1]} 28. exd4 {[%clk 0:01:01.4]} 28... Bg4 {[%clk 0:00:34.9]} 29.
Re1 {[%clk 0:00:57.2]} 29... Rd8 {[%clk 0:00:34.7]} 30. Ng3 {[%clk 0:00:50.6]}
1-0

[Event "Late-Titled-Tuesday-Blitz-March-12-2024"]
[Site "Chess.com"]
[Date "2024.03.12"]
[Round "11"]
[White "emeli_chess"]
[Black "noblerone"]
[Result "1-0"]
[WhiteElo "2412"]
[BlackElo "2559"]
[TimeControl "180+1"]
[EndTime "16:02:46 PDT"]
[Termination "emeli_chess won by resignation"]

1. d4 {[%clk 0:03:00.9]} 1... d5 {[%clk 0:02:56.3]} 2. c4 {[%clk 0:03:01]} 2...
c6 {[%clk 0:02:52.8]} 3. Nc3 {[%clk 0:03:00.2]} 3... Nf6 {[%clk 0:02:53.2]} 4.
e3 {[%clk 0:03:00.4]} 4... a6 {[%clk 0:02:52.9]} 5. c5 {[%clk 0:02:59.8]} 5...
Bf5 {[%clk 0:02:48.6]} 6. f4 {[%clk 0:02:59.7]} 6... e6 {[%clk 0:02:47.4]} 7.
Nf3 {[%clk 0:02:59.7]} 7... Ne4 {[%clk 0:02:44.7]} 8. Bd2 {[%clk 0:02:52.8]}
8... Be7 {[%clk 0:02:38]} 9. Be2 {[%clk 0:02:51.9]} 9... O-O {[%clk 0:02:34.2]}
10. O-O {[%clk 0:02:51.5]} 10... h6 {[%clk 0:02:28.1]} 11. Be1 {[%clk
0:02:47.1]} 11... Nd7 {[%clk 0:02:23.8]} 12. b4 {[%clk 0:02:42.8]} 12... Nxc3
{[%clk 0:02:16.5]} 13. Bxc3 {[%clk 0:02:42]} 13... Nf6 {[%clk 0:02:13.5]} 14. a4
{[%clk 0:02:16]} 14... Qc7 {[%clk 0:01:52.8]} 15. Qb3 {[%clk 0:02:11.5]} 15...
Rfe8 {[%clk 0:01:38.8]} 16. Rfc1 {[%clk 0:02:07.5]} 16... Bg4 {[%clk 0:01:34.6]}
17. Be1 {[%clk 0:02:03.4]} 17... Ne4 {[%clk 0:01:31]} 18. h3 {[%clk 0:01:57.5]}
18... Bf5 {[%clk 0:01:30]} 19. Nd2 {[%clk 0:01:36.2]} 19... Nxd2 {[%clk
0:01:15.3]} 20. Bxd2 {[%clk 0:01:36]} 20... Be4 {[%clk 0:01:15.1]} 21. b5 {[%clk
0:01:27.5]} 21... axb5 {[%clk 0:01:12.8]} 22. axb5 {[%clk 0:01:27.2]} 22... Bf6
{[%clk 0:01:08.1]} 23. Bd3 {[%clk 0:01:16.7]} 23... Bxd3 {[%clk 0:01:03.3]} 24.
Qxd3 {[%clk 0:01:16.4]} 24... g6 {[%clk 0:00:58]} 25. Qb3 {[%clk 0:01:11.9]}
25... Bg7 {[%clk 0:00:56.9]} 26. Rcb1 {[%clk 0:01:06.8]} 26... g5 {[%clk
0:00:42.6]} 27. g3 {[%clk 0:00:57.1]} 27... Qe7 {[%clk 0:00:29.7]} 28. bxc6
{[%clk 0:00:54]} 28... bxc6 {[%clk 0:00:29.8]} 29. Rxa8 {[%clk 0:00:54]} 29...
Rxa8 {[%clk 0:00:30.7]} 30. Qb7 {[%clk 0:00:53.8]} 30... Ra2 {[%clk 0:00:30.4]}
31. Qxe7 {[%clk 0:00:52.7]} 1-0

[Event "Late-Titled-Tuesday-Blitz-March-12-2024"]
[Site "Chess.com"]
[Date "2024.03.12"]
[Round "11"]
[White "JaackCamel"]
[Black "lasRojas"]
[Result "0-1"]
[WhiteElo "2206"]
[BlackElo "2322"]
[TimeControl "180+1"]
[EndTime "16:02:51 PDT"]
[Termination "lasRojas won on time"]

1. d4 {[%clk 0:03:00.9]} 1... Nf6 {[%clk 0:02:59.3]} 2. c4 {[%clk 0:02:59.1]}
2... e6 {[%clk 0:02:58.8]} 3. Nc3 {[%clk 0:02:58.6]} 3... Bb4 {[%clk 0:02:58.7]}
4. Qc2 {[%clk 0:02:58.2]} 4... O-O {[%clk 0:02:58]} 5. a3 {[%clk 0:02:58]} 5...
Bxc3+ {[%clk 0:02:57.8]} 6. Qxc3 {[%clk 0:02:58.2]} 6... Qe8 {[%clk 0:02:57]} 7.
Qc2 {[%clk 0:02:52.1]} 7... d6 {[%clk 0:02:54.2]} 8. e4 {[%clk 0:02:51.5]} 8...
e5 {[%clk 0:02:53.9]} 9. d5 {[%clk 0:02:48.4]} 9... a5 {[%clk 0:02:53.2]} 10. b3
{[%clk 0:02:43.2]} 10... Na6 {[%clk 0:02:52.8]} 11. Bd3 {[%clk 0:02:33.4]} 11...
Nc5 {[%clk 0:02:52.4]} 12. h3 {[%clk 0:02:29.3]} 12... a4 {[%clk 0:02:48]} 13.
b4 {[%clk 0:02:26.2]} 13... Nb3 {[%clk 0:02:47.2]} 14. Ra2 {[%clk 0:02:23.1]}
14... Nxc1 {[%clk 0:02:27.8]} 15. Qxc1 {[%clk 0:02:22.7]} 15... Bd7 {[%clk
0:02:22.7]} 16. Ne2 {[%clk 0:02:18]} 16... b5 {[%clk 0:02:16.5]} 17. c5 {[%clk
0:02:14.3]} 17... c6 {[%clk 0:02:10.2]} 18. O-O {[%clk 0:01:51.4]} 18... Rc8
{[%clk 0:02:02]} 19. Rc2 {[%clk 0:01:38.4]} 19... cxd5 {[%clk 0:01:53.9]} 20. c6
{[%clk 0:01:24.5]} 20... Bxc6 {[%clk 0:01:49.7]} 21. exd5 {[%clk 0:01:23.6]}
21... Bxd5 {[%clk 0:01:38.5]} 22. Bf5 {[%clk 0:01:13]} 22... Rxc2 {[%clk
0:01:35]} 23. Qxc2 {[%clk 0:01:11.2]} 23... g6 {[%clk 0:01:35.3]} 24. Bg4 {[%clk
0:01:04]} 24... h5 {[%clk 0:01:33.8]} 25. Bf3 {[%clk 0:00:51.9]} 25... e4 {[%clk
0:01:34]} 26. Nf4 {[%clk 0:00:35.1]} 26... exf3 {[%clk 0:01:32.9]} 27. Qc3
{[%clk 0:00:35.1]} 27... fxg2 {[%clk 0:01:21.3]} 28. Rd1 {[%clk 0:00:31.6]}
28... Bb3 {[%clk 0:01:08.9]} 29. Rxd6 {[%clk 0:00:20.9]} 29... Ne4 {[%clk
0:01:06.2]} 30. Rxg6+ {[%clk 0:00:04.9]} 30... fxg6 {[%clk 0:01:03.3]} 0-1